fUST/lending_fUST_20240425
["ID","MTS","AMOUNT","RATE_DAILY","PERIOD"]
[323471397,1714029081394,-1181.52,0.00020547,2]
[323471398,1714029081404,-1309.77,0.00020547,2]
[323471399,1714029081415,-500.0,0.00020547,2]
[323471400,1714029081425,-678.72,0.00020547,2]
[323471401,1714029081434,-811.0,0.00020547,2]
[323471402,1714029081444,-1302.25,0.00020547,2]
[323471403,1714029081453,-1152.0,0.00020616,2]
[323471404,1714029081462,-150.0,0.0002073,2]
[323471405,1714029081471,-818.02,0.00020821,2]
[323471406,1714029081481,-619.95,0.00020821,2]
[323471407,1714029081490,-568.07,0.00020821,2]
[323471408,1714029081499,-793.19,0.00020821,2]
[323471409,1714029081508,-616.43,0.00020821,2]
[323471410,1714029081518,-583.35,0.00020821,2]
[323471411,1714029081528,-500.0,0.00020821,2]
[323471412,1714029081538,-500.0,0.00020821,2]
[323471413,1714029081547,-500.0,0.00020821,2]
[323471414,1714029081556,-500.0,0.00020821,2]
[323471415,1714029081565,-669.58,0.00020821,2]
[323471416,1714029081575,-500.0,0.00020821,2]
[323471417,1714029081584,-709.97,0.00020821,2]
[323471418,1714029081593,-1057.71,0.00020821,2]
[323471419,1714029081603,-500.56,0.00020821,2]
[323471420,1714029081612,-633.35,0.00020821,2]
[323471421,1714029081627,-816.77,0.00020821,2]
[323471422,1714029081636,-1060.08,0.00020821,2]
[323471423,1714029081645,-500.0,0.00020821,2]
[323471424,1714029081655,-890.42,0.00020821,2]
[323471425,1714029081664,-929.12,0.00020821,2]
[323471426,1714029081673,-630.9,0.00020821,2]
[323471427,1714029081682,-739.88,0.00020821,2]
[323471428,1714029081691,-500.0,0.00020821,2]
[323471429,1714029081700,-500.0,0.00020821,2]
[323471430,1714029081709,-500.0,0.00020821,2]
[323471431,1714029081718,-592.11,0.00020821,2]
[323471432,1714029081727,-822.31,0.00020821,2]
[323471433,1714029081736,-500.0,0.00020821,2]
[323471434,1714029081745,-739.2,0.00020821,2]
[323471435,1714029081754,-605.37,0.00020821,2]
[323471436,1714029081763,-558.24,0.00020821,2]
[323471437,1714029081772,-546.26,0.00020821,2]
[323471438,1714029081781,-1237.28,0.00020821,2]
[323471439,1714029081790,-500.0,0.00020821,2]
[323471440,1714029081799,-1489.98,0.00020821,2]
[323471441,1714029081808,-500.0,0.00020821,2]
[323471442,1714029081817,-958.76,0.00020821,2]
[323471443,1714029081826,-500.0,0.00020821,2]
[323471444,1714029081835,-1050.99,0.00020821,2]
[323471445,1714029081845,-685.4,0.00020821,2]
[323471446,1714029081854,-541.01,0.00020821,2]
[323471447,1714029081863,-500.0,0.00020821,2]
[323471448,1714029081876,-946.6,0.00020821,2]
[323471449,1714029081885,-1067.85,0.00020821,2]
[323471450,1714029081894,-1592.53,0.00020821,2]
[323471451,1714029081904,-1450.14,0.00020821,2]
[323471452,1714029081913,-500.0,0.00020821,2]
[323471453,1714029081922,-835.63,0.00020821,2]
[323471454,1714029081931,-770.33,0.00020821,2]
[323471455,1714029081940,-500.0,0.00020821,2]
[323471456,1714029081949,-2942.75,0.00020821,2]
[323471457,1714029081959,-769.52,0.00020821,2]
[323471458,1714029081968,-1283.68,0.00020821,2]
[323471459,1714029081977,-536.62,0.00020821,2]
[323471460,1714029081985,-575.83,0.00020821,2]
[323471461,1714029081995,-3973.6,0.00020821,2]
[323471462,1714029082005,-500.0,0.00020821,2]
[323471463,1714029082017,-2242.97,0.00020821,2]
[323471464,1714029082026,-3243.05,0.00020821,2]
[323471465,1714029082036,-500.0,0.00020821,2]
[323471466,1714029082045,-508.57,0.00020821,2]
[323471467,1714029082054,-631.78,0.00020821,2]
[323471468,1714029082063,-1375.26,0.00020821,2]
[323471469,1714029082072,-312.37409153,0.00020821,2]
[323471470,1714029082082,-1387.72,0.00020821,2]
[323471471,1714029082092,-260.10621337,0.00020821,2]
[323471472,1714029082102,-1846.12,0.00020821,2]
[323471473,1714029082111,-800.02,0.00020821,2]
[323471474,1714029082123,-646.8,0.00020821,2]
[323471475,1714029082132,-2358.88,0.00020821,2]
[323471476,1714029082142,-1011.49,0.00020821,2]
[323471477,1714029082151,-329.7357172,0.00020821,2]
[323471478,1714029082160,-2667.62,0.00020821,2]
[323471479,1714029082170,-500.0,0.00020821,2]
[323471480,1714029082180,-1174.54,0.00020821,2]
[323471481,1714029082189,-723.31,0.00020821,2]
[323471482,1714029082198,-592.52,0.00020821,2]
[323471483,1714029082207,-500.0,0.00020821,2]
[323471484,1714029082216,-557.02,0.00020821,2]
[323471485,1714029082225,-696.57,0.00020821,2]
[323471486,1714029082234,-646.03,0.00020821,2]
[323471487,1714029082243,-1084.85,0.00020821,2]
[323471488,1714029082253,-584.17,0.00020821,2]
[323471489,1714029082262,-500.0,0.00020821,2]
[323471490,1714029082271,-762.04,0.00020821,2]
[323471491,1714029082280,-509.24,0.00020821,2]
[323471492,1714029082289,-1828.52,0.00020821,2]
[323471493,1714029082298,-525.09,0.00020821,2]
[323471494,1714029082308,-9714.64,0.00020821,2]
[323471495,1714029082318,-500.0,0.00020821,2]
[323471496,1714029082327,-1951.68,0.00020821,2]
[323471497,1714029082336,-1197.24,0.00020821,2]
[323471498,1714029082345,-639.36,0.00020821,2]
[323471499,1714029082354,-1048.02,0.00020821,2]
[323471500,1714029082366,-2000.98,0.00020821,2]
[323471501,1714029082376,-594.44,0.00020821,2]
[323471502,1714029082385,-1048.7,0.00020821,2]
[323471503,1714029082394,-1181.52,0.00020821,2]
[323471504,1714029082403,-1309.77,0.00020821,2]
[323471505,1714029082413,-500.0,0.00020821,2]
[323471506,1714029082423,-678.72,0.00020821,2]
[323471507,1714029082432,-811.0,0.00020821,2]
[323471508,1714029082442,-1302.25,0.00020821,2]
[323471509,1714029082451,-1152.0,0.00020981,2]
[323471510,1714029082460,-478.0,0.00021,2]
[323471511,1714029082469,-236.38811781,0.00021,2]
[323471512,1714029082478,-197.11614671,0.00021,2]
[323471513,1714029082487,-3443.8752332,0.00021,2]
[323471514,1714029082496,-157.0,0.00021,2]
[323471515,1714029082505,-390.82973518,0.00021011,2]
[323471516,1714029082514,-818.02,0.00021095,2]
[323471517,1714029082523,-619.95,0.00021095,2]
[323471518,1714029082532,-568.07,0.00021095,2]
[323471519,1714029082542,-793.19,0.00021095,2]
[323471520,1714029082551,-616.43,0.00021095,2]
[323471521,1714029082560,-583.35,0.00021095,2]
[323471522,1714029082569,-500.0,0.00021095,2]
[323471523,1714029082578,-500.0,0.00021095,2]
[323471524,1714029082587,-500.0,0.00021095,2]
[323471525,1714029082596,-500.0,0.00021095,2]
[323471526,1714029082605,-669.58,0.00021095,2]
[323471527,1714029082616,-500.0,0.00021095,2]
[323471528,1714029082626,-709.97,0.00021095,2]
[323471529,1714029082636,-1057.71,0.00021095,2]
[323471530,1714029082645,-500.56,0.00021095,2]
[323471531,1714029082654,-633.35,0.00021095,2]
[323471532,1714029082663,-816.77,0.00021095,2]
[323471533,1714029082672,-1060.08,0.00021095,2]
[323471534,1714029082681,-500.0,0.00021095,2]
[323471535,1714029082691,-890.42,0.00021095,2]
[323471536,1714029082700,-929.12,0.00021095,2]
[323471537,1714029082709,-630.9,0.00021095,2]
[323471538,1714029082718,-739.88,0.00021095,2]
[323471539,1714029082727,-500.0,0.00021095,2]
[323471540,1714029082737,-500.0,0.00021095,2]
[323471541,1714029082746,-500.0,0.00021095,2]
[323471542,1714029082755,-592.11,0.00021095,2]
[323471543,1714029082882,-822.31,0.00021095,2]
[323471544,1714029082892,-500.0,0.00021095,2]
[323471545,1714029082902,-739.2,0.00021095,2]
[323471546,1714029082912,-605.37,0.00021095,2]
[323471547,1714029082921,-558.24,0.00021095,2]
[323471548,1714029082930,-546.26,0.00021095,2]
[323471549,1714029082939,-1237.28,0.00021095,2]
[323471550,1714029082949,-326.97401946,0.00021095,2]
[323471551,1714029082958,-1489.98,0.00021095,2]
[323471552,1714029082968,-500.35557124,0.00021095,2]
[323471553,1714029082977,-958.76,0.00021095,2]
[323471554,1714029082986,-500.0,0.00021095,2]
[323471555,1714029082995,-1050.99,0.00021095,2]
[323471556,1714029083007,-685.4,0.00021095,2]
[323471557,1714029083017,-541.01,0.00021095,2]
[323471558,1714029083027,-500.0,0.00021095,2]
[323471559,1714029083036,-946.6,0.00021095,2]
[323471560,1714029083046,-1067.85,0.00021095,2]
[323471561,1714029083056,-1592.53,0.00021095,2]
[323471562,1714029083065,-1450.14,0.00021095,2]
[323471563,1714029083074,-500.0,0.00021095,2]
[323471564,1714029083084,-835.63,0.00021095,2]
[323471565,1714029083093,-770.33,0.00021095,2]
[323471566,1714029083102,-500.0,0.00021095,2]
[323471567,1714029083112,-2942.75,0.00021095,2]
[323471568,1714029083122,-769.52,0.00021095,2]
[323471569,1714029083131,-1283.68,0.00021095,2]
[323471570,1714029083140,-536.62,0.00021095,2]
[323471571,1714029083149,-575.83,0.00021095,2]
[323471572,1714029083159,-3973.6,0.00021095,2]
[323471573,1714029083168,-500.0,0.00021095,2]
[323471574,1714029083177,-2242.97,0.00021095,2]
[323471575,1714029083186,-3243.05,0.00021095,2]
[323471576,1714029083195,-500.0,0.00021095,2]
[323471577,1714029083204,-508.57,0.00021095,2]
[323471578,1714029083214,-631.78,0.00021095,2]
[323471579,1714029083223,-1375.26,0.00021095,2]
[323471580,1714029083232,-1387.72,0.00021095,2]
[323471581,1714029083241,-1846.12,0.00021095,2]
[323471582,1714029083250,-800.02,0.00021095,2]
[323471583,1714029083259,-646.8,0.00021095,2]
[323471584,1714029083268,-2358.88,0.00021095,2]
[323471585,1714029083277,-1011.49,0.00021095,2]
[323471586,1714029083286,-2667.62,0.00021095,2]
[323471587,1714029083296,-500.0,0.00021095,2]
[323471588,1714029083305,-1174.54,0.00021095,2]
[323471589,1714029083314,-723.31,0.00021095,2]
[323471590,1714029083324,-592.52,0.00021095,2]
[323471591,1714029083333,-500.0,0.00021095,2]
[323471592,1714029083342,-557.02,0.00021095,2]
[323471593,1714029083352,-696.57,0.00021095,2]
[323471594,1714029083361,-646.03,0.00021095,2]
[323471595,1714029083372,-1084.85,0.00021095,2]
[323471596,1714029083381,-584.17,0.00021095,2]
[323471597,1714029083391,-500.0,0.00021095,2]
[323471598,1714029083400,-762.04,0.00021095,2]
[323471599,1714029083410,-509.24,0.00021095,2]
[323471600,1714029083420,-1828.52,0.00021095,2]
[323471601,1714029083429,-525.09,0.00021095,2]
[323471602,1714029083438,-9714.64,0.00021095,2]
[323471603,1714029083448,-500.0,0.00021095,2]
[323471604,1714029083457,-1951.68,0.00021095,2]
[323471605,1714029083466,-1197.24,0.00021095,2]
[323471606,1714029083475,-639.36,0.00021095,2]
[323471607,1714029083484,-1048.02,0.00021095,2]
[323471608,1714029083493,-2000.98,0.00021095,2]
[323471609,1714029083502,-594.44,0.00021095,2]
[323471610,1714029083512,-1048.7,0.00021095,2]
[323471611,1714029083521,-1181.52,0.00021095,2]
[323471612,1714029083530,-1309.77,0.00021095,2]
[323471613,1714029083540,-220.09123092,0.00021095,2]
[323471614,1714029083550,-678.72,0.00021095,2]
[323471615,1714029083560,-811.0,0.00021095,2]
[323471616,1714029083569,-1302.25,0.00021095,2]
[323471617,1714029083579,-620.0,0.00021234,2]
[323471618,1714029083588,-818.02,0.00021369,2]
[323471619,1714029083598,-619.95,0.00021369,2]
[323471620,1714029083607,-568.07,0.00021369,2]
[323471621,1714029083617,-793.19,0.00021369,2]
[323471622,1714029083626,-616.43,0.00021369,2]
[323471623,1714029083635,-583.35,0.00021369,2]
[323471624,1714029083644,-500.0,0.00021369,2]
[323471625,1714029083654,-252.26031805,0.00021369,2]
[323471626,1714029083664,-500.0,0.00021369,2]
[323471627,1714029083673,-500.0,0.00021369,2]
[323471628,1714029083683,-669.58,0.00021369,2]
[323471629,1714029083692,-593.6948898,0.00021369,2]
[323471630,1714029083701,-709.97,0.00021369,2]
[323471631,1714029083711,-1057.71,0.00021369,2]
[323471632,1714029083721,-500.56,0.00021369,2]
[323471633,1714029083730,-633.35,0.00021369,2]
[323471634,1714029083739,-816.77,0.00021369,2]
[323471635,1714029083749,-1060.08,0.00021369,2]
[323471636,1714029083758,-500.0,0.00021369,2]
[323471637,1714029083767,-890.42,0.00021369,2]
[323471638,1714029083777,-929.12,0.00021369,2]
[323471639,1714029083786,-630.9,0.00021369,2]
[323471640,1714029083795,-739.88,0.00021369,2]
[323471641,1714029083804,-466.58743125,0.00021369,2]
[323471642,1714029083813,-500.0,0.00021369,2]
[323471643,1714029083823,-500.0,0.00021369,2]
[323471644,1714029083832,-592.11,0.00021369,2]
[323471645,1714029083842,-822.31,0.00021369,2]
[323471646,1714029083852,-500.0,0.00021369,2]
[323471647,1714029083861,-739.2,0.00021369,2]
[323471648,1714029083872,-605.37,0.00021369,2]
[323471649,1714029083880,-558.24,0.00021369,2]
[323471650,1714029083889,-546.26,0.00021369,2]
[323471651,1714029083898,-1237.28,0.00021369,2]
[323471652,1714029083907,-1489.98,0.00021369,2]
[323471653,1714029083917,-958.76,0.00021369,2]
[323471654,1714029083926,-500.0,0.00021369,2]
[323471655,1714029083935,-1050.99,0.00021369,2]
[323471656,1714029083945,-685.4,0.00021369,2]
[323471657,1714029083954,-541.01,0.00021369,2]
[323471658,1714029083963,-500.0,0.00021369,2]
[323471659,1714029083972,-946.6,0.00021369,2]
[323471660,1714029083981,-1067.85,0.00021369,2]
[323471661,1714029083990,-1592.53,0.00021369,2]
[323471662,1714029083999,-1450.14,0.00021369,2]
[323471663,1714029084012,-500.0,0.00021369,2]
[323471664,1714029084021,-835.63,0.00021369,2]
[323471665,1714029084031,-770.33,0.00021369,2]
[323471666,1714029084040,-500.0,0.00021369,2]
[323471667,1714029084050,-2942.75,0.00021369,2]
[323471668,1714029084059,-769.52,0.00021369,2]
[323471669,1714029084068,-1283.68,0.00021369,2]
[323471670,1714029084077,-536.62,0.00021369,2]
[323471671,1714029084087,-575.83,0.00021369,2]
[323471672,1714029084097,-3973.6,0.00021369,2]
[323471673,1714029084106,-500.0,0.00021369,2]
[323471674,1714029084115,-2242.97,0.00021369,2]
[323471675,1714029084124,-3243.05,0.00021369,2]
[323471676,1714029084134,-500.0,0.00021369,2]
[323471677,1714029084143,-508.57,0.00021369,2]
[323471678,1714029084152,-631.78,0.00021369,2]
[323471679,1714029084161,-1375.26,0.00021369,2]
[323471680,1714029084170,-1387.72,0.00021369,2]
[323471681,1714029084180,-1846.12,0.00021369,2]
[323471682,1714029084189,-800.02,0.00021369,2]
[323471683,1714029084198,-646.8,0.00021369,2]
[323471684,1714029084207,-2358.88,0.00021369,2]
[323471685,1714029084217,-1011.49,0.00021369,2]
[323471686,1714029084226,-2667.62,0.00021369,2]
[323471687,1714029084235,-500.0,0.00021369,2]
[323471688,1714029084245,-1174.54,0.00021369,2]
[323471689,1714029084254,-723.31,0.00021369,2]
[323471690,1714029084263,-592.52,0.00021369,2]
[323471691,1714029084273,-500.0,0.00021369,2]
[323471692,1714029084282,-557.02,0.00021369,2]
[323471693,1714029084292,-696.57,0.00021369,2]
[323471694,1714029084301,-646.03,0.00021369,2]
[323471695,1714029084311,-1084.85,0.00021369,2]
[323471696,1714029084320,-584.17,0.00021369,2]
[323471697,1714029084330,-500.0,0.00021369,2]
[323471698,1714029084339,-762.04,0.00021369,2]
[323471699,1714029084348,-509.24,0.00021369,2]
[323471700,1714029084358,-1828.52,0.00021369,2]
[323471701,1714029084367,-525.09,0.00021369,2]
[323471702,1714029084376,-9714.64,0.00021369,2]
[323471703,1714029084385,-500.0,0.00021369,2]
[323471704,1714029084394,-1951.68,0.00021369,2]
[323471705,1714029084403,-1197.24,0.00021369,2]
[323471706,1714029084413,-639.36,0.00021369,2]
[323471707,1714029084422,-1048.02,0.00021369,2]
[323471708,1714029084432,-2000.98,0.00021369,2]
[323471709,1714029084442,-594.44,0.00021369,2]
[323471710,1714029084451,-1048.7,0.00021369,2]
[323471711,1714029084461,-1181.52,0.00021369,2]
[323471712,1714029084471,-1309.77,0.00021369,2]
[323471713,1714029084480,-678.72,0.00021369,2]
[323471714,1714029084490,-811.0,0.00021369,2]
[323471715,1714029084500,-1302.25,0.00021369,2]
[323471716,1714029084509,-1000.0,0.000215,2]
[323471717,1714029084519,-1947.810485,0.0002157,2]
[323471718,1714029084529,-818.02,0.00021643,2]
[323471719,1714029084539,-619.95,0.00021643,2]
[323471720,1714029084548,-568.07,0.00021643,2]
[323471721,1714029084558,-793.19,0.00021643,2]
[323471722,1714029084567,-616.43,0.00021643,2]
[323471723,1714029084577,-583.35,0.00021643,2]
[323471724,1714029084586,-500.0,0.00021643,2]
[323471725,1714029084595,-500.0,0.00021643,2]
[323471726,1714029084605,-500.0,0.00021643,2]
[323471727,1714029084616,-669.58,0.00021643,2]
[323471728,1714029084625,-709.97,0.00021643,2]
[323471729,1714029084634,-1057.71,0.00021643,2]
[323471730,1714029084643,-500.56,0.00021643,2]
[323471731,1714029084653,-633.35,0.00021643,2]
[323471732,1714029084663,-816.77,0.00021643,2]
[323471733,1714029084672,-1060.08,0.00021643,2]
[323471734,1714029084683,-500.0,0.00021643,2]
[323471735,1714029084693,-890.42,0.00021643,2]
[323471736,1714029084703,-929.12,0.00021643,2]
[323471737,1714029084712,-630.9,0.00021643,2]
[323471738,1714029084722,-739.88,0.00021643,2]
[323471739,1714029084731,-500.0,0.00021643,2]
[323471740,1714029084740,-378.4,0.00021643,2]
[323471741,1714029084750,-592.11,0.00021643,2]
[323471742,1714029084759,-822.31,0.00021643,2]
[323471743,1714029084769,-500.0,0.00021643,2]
[323471744,1714029084778,-739.2,0.00021643,2]
[323471745,1714029084788,-605.37,0.00021643,2]
[323471746,1714029084797,-558.24,0.00021643,2]
[323471747,1714029084807,-546.26,0.00021643,2]
[323471748,1714029084816,-1237.28,0.00021643,2]
[323471749,1714029084826,-1489.98,0.00021643,2]
[323471750,1714029084835,-958.76,0.00021643,2]
[323471751,1714029084844,-500.0,0.00021643,2]
[323471752,1714029084854,-1050.99,0.00021643,2]
[323471753,1714029084876,-685.4,0.00021643,2]
[323471754,1714029084885,-541.01,0.00021643,2]
[323471755,1714029084895,-500.0,0.00021643,2]
[323471756,1714029084904,-946.6,0.00021643,2]
[323471757,1714029084914,-1067.85,0.00021643,2]
[323471758,1714029084923,-1592.53,0.00021643,2]
[323471759,1714029084932,-1450.14,0.00021643,2]
[323471760,1714029084941,-500.0,0.00021643,2]
[323471761,1714029084951,-835.63,0.00021643,2]
[323471762,1714029084961,-770.33,0.00021643,2]
[323471763,1714029084970,-500.0,0.00021643,2]
[323471764,1714029084979,-2942.75,0.00021643,2]
[323471765,1714029084989,-769.52,0.00021643,2]
[323471766,1714029084998,-1283.68,0.00021643,2]
[323471767,1714029085011,-536.62,0.00021643,2]
[323471768,1714029085020,-575.83,0.00021643,2]
[323471769,1714029085030,-3973.6,0.00021643,2]
[323471770,1714029085038,-201.36048212,0.00021643,2]
[323471771,1714029085049,-2242.97,0.00021643,2]
[323471772,1714029085059,-3243.05,0.00021643,2]
[323471773,1714029085068,-608.46554679,0.00021643,2]
[323471774,1714029085077,-508.57,0.00021643,2]
[323471775,1714029085087,-631.78,0.00021643,2]
[323471776,1714029085097,-1375.26,0.00021643,2]
[323471777,1714029085106,-1387.72,0.00021643,2]
[323471778,1714029085117,-1846.12,0.00021643,2]
[323471779,1714029085236,-800.02,0.00021643,2]
[323471780,1714029085246,-646.8,0.00021643,2]
[323471781,1714029085256,-2358.88,0.00021643,2]
[323471782,1714029085265,-1011.49,0.00021643,2]
[323471783,1714029085275,-2667.62,0.00021643,2]
[323471784,1714029085286,-500.0,0.00021643,2]
[323471785,1714029085296,-1174.54,0.00021643,2]
[323471786,1714029085305,-723.31,0.00021643,2]
[323471787,1714029085316,-592.52,0.00021643,2]
[323471788,1714029085325,-529.65487717,0.00021643,2]
[323471789,1714029085335,-557.02,0.00021643,2]
[323471790,1714029085345,-696.57,0.00021643,2]
[323471791,1714029085354,-646.03,0.00021643,2]
[323471792,1714029085363,-1084.85,0.00021643,2]
[323471793,1714029085374,-584.17,0.00021643,2]
[323471794,1714029085383,-500.0,0.00021643,2]
[323471795,1714029085394,-762.04,0.00021643,2]
[323471796,1714029085404,-509.24,0.00021643,2]
[323471797,1714029085413,-1828.52,0.00021643,2]
[323471798,1714029085423,-525.09,0.00021643,2]
[323471799,1714029085433,-9714.64,0.00021643,2]
[323471800,1714029085442,-500.0,0.00021643,2]
[323471801,1714029085452,-1951.68,0.00021643,2]
[323471802,1714029085462,-1197.24,0.00021643,2]
[323471803,1714029085471,-639.36,0.00021643,2]
[323471804,1714029085481,-1048.02,0.00021643,2]
[323471805,1714029085490,-2000.98,0.00021643,2]
[323471806,1714029085500,-594.44,0.00021643,2]
[323471807,1714029085509,-1048.7,0.00021643,2]
[323471808,1714029085519,-1181.52,0.00021643,2]
[323471809,1714029085529,-1309.77,0.00021643,2]
[323471810,1714029085538,-678.72,0.00021643,2]
[323471811,1714029085547,-811.0,0.00021643,2]
[323471812,1714029085556,-1302.25,0.00021643,2]
[323471813,1714029085566,-1040.12536647,0.000219,2]
[323471814,1714029085575,-594.14530586,0.000219,2]
[323471815,1714029085584,-1040.12536643,0.000219,2]
[323471816,1714029085593,-1040.12536643,0.000219,2]
[323471817,1714029085602,-1040.12536643,0.000219,2]
[323471818,1714029085611,-1040.12536643,0.000219,2]
[323471819,1714029085620,-1040.12536643,0.000219,2]
[323471820,1714029085629,-1040.12536643,0.000219,2]
[323471821,1714029085638,-1040.12536643,0.000219,2]
[323471822,1714029085648,-1040.12536643,0.000219,2]
[323471823,1714029085657,-1040.12536643,0.000219,2]
[323471824,1714029085666,-250.0,0.000219,2]
[323471825,1714029085675,-250.0,0.000219,2]
[323471826,1714029085685,-250.0,0.000219,2]
[323471827,1714029085694,-250.0,0.000219,2]
[323471828,1714029085703,-818.02,0.00021917,2]
[323471829,1714029085712,-619.95,0.00021917,2]
[323471830,1714029085721,-568.07,0.00021917,2]
[323471831,1714029085730,-793.19,0.00021917,2]
[323471832,1714029085739,-616.43,0.00021917,2]
[323471833,1714029085749,-583.35,0.00021917,2]
[323471834,1714029085758,-500.0,0.00021917,2]
[323471835,1714029085767,-500.0,0.00021917,2]
[323471836,1714029085776,-500.0,0.00021917,2]
[323471837,1714029085785,-669.58,0.00021917,2]
[323471838,1714029085794,-709.97,0.00021917,2]
[323471839,1714029085802,-1057.71,0.00021917,2]
[323471840,1714029085812,-500.56,0.00021917,2]
[323471841,1714029085821,-633.35,0.00021917,2]
[323471842,1714029085830,-816.77,0.00021917,2]
[323471843,1714029085839,-1060.08,0.00021917,2]
[323471844,1714029085848,-298.71208286,0.00021917,2]
[323471845,1714029085857,-890.42,0.00021917,2]
[323471846,1714029085869,-929.12,0.00021917,2]
[323471847,1714029085878,-630.9,0.00021917,2]
[323471848,1714029085887,-739.88,0.00021917,2]
[323471849,1714029085897,-440.44567811,0.00021917,2]
[323471850,1714029085905,-592.11,0.00021917,2]
[323471851,1714029085915,-822.31,0.00021917,2]
[323471852,1714029085924,-242.78241636,0.00021917,2]
[323471853,1714029085932,-739.2,0.00021917,2]
[323471854,1714029085942,-605.37,0.00021917,2]
[323471855,1714029085951,-558.24,0.00021917,2]
[323471856,1714029085960,-546.26,0.00021917,2]
[323471857,1714029085969,-1237.28,0.00021917,2]
[323471858,1714029085978,-1489.98,0.00021917,2]
[323471859,1714029085987,-958.76,0.00021917,2]
[323471860,1714029085996,-500.0,0.00021917,2]
[323471861,1714029086005,-1050.99,0.00021917,2]
[323471862,1714029086017,-685.4,0.00021917,2]
[323471863,1714029086026,-541.01,0.00021917,2]
[323471864,1714029086036,-500.0,0.00021917,2]
[323471865,1714029086045,-946.6,0.00021917,2]
[323471866,1714029086054,-1067.85,0.00021917,2]
[323471867,1714029086063,-1592.53,0.00021917,2]
[323471868,1714029086073,-1450.14,0.00021917,2]
[323471869,1714029086083,-500.0,0.00021917,2]
[323471870,1714029086092,-835.63,0.00021917,2]
[323471871,1714029086102,-770.33,0.00021917,2]
[323471872,1714029086111,-500.0,0.00021917,2]
[323471873,1714029086122,-2942.75,0.00021917,2]
[323471874,1714029086132,-769.52,0.00021917,2]
[323471875,1714029086141,-1283.68,0.00021917,2]
[323471876,1714029086151,-536.62,0.00021917,2]
[323471877,1714029086161,-575.83,0.00021917,2]
[323471878,1714029086171,-3973.6,0.00021917,2]
[323471879,1714029086181,-2242.97,0.00021917,2]
[323471880,1714029086190,-3243.05,0.00021917,2]
[323471881,1714029086199,-508.57,0.00021917,2]
[323471882,1714029086208,-631.78,0.00021917,2]
[323471883,1714029086217,-1375.26,0.00021917,2]
[323471884,1714029086227,-1387.72,0.00021917,2]
[323471885,1714029086236,-1846.12,0.00021917,2]
[323471886,1714029086245,-800.02,0.00021917,2]
[323471887,1714029086255,-646.8,0.00021917,2]
[323471888,1714029086264,-2358.88,0.00021917,2]
[323471889,1714029086273,-1011.49,0.00021917,2]
[323471890,1714029086282,-2667.62,0.00021917,2]
[323471891,1714029086292,-500.0,0.00021917,2]
[323471892,1714029086301,-1174.54,0.00021917,2]
[323471893,1714029086311,-723.31,0.00021917,2]
[323471894,1714029086320,-592.52,0.00021917,2]
[323471895,1714029086329,-557.02,0.00021917,2]
[323471896,1714029086339,-696.57,0.00021917,2]